bitfinex-derivatives/quotes_BTCF0:USTF0_20250724
["timestamp","ask_amount","ask_price","bid_price","bid_amount"]
[1753365824744,1.39223667,118410.0,118400.0,0.1718263]
[1753365826143,1.81478553,118410.0,118400.0,0.003]
[1753365826349,0.5442405,118390.0,118380.0,0.22844858]
[1753365826547,2.2410405,118390.0,118380.0,0.22844858]
[1753365826746,2.36798662,118390.0,118380.0,0.18623758]
[1753365827143,2.36798662,118390.0,118380.0,0.01738758]
[1753365827442,2.36798662,118390.0,118380.0,0.19124238]
[1753365827443,2.36898662,118390.0,118380.0,0.19124238]
[1753365827648,2.36898662,118390.0,118380.0,0.89058124]
[1753365827847,1.59494612,118390.0,118380.0,0.89058124]
[1753365828045,1.83938612,118390.0,118380.0,0.89058124]
[1753365828244,1.84038612,118390.0,118380.0,0.89358124]
[1753365828444,1.40928612,118390.0,118380.0,0.96067124]
[1753365828648,2.00922662,118390.0,118380.0,0.34669238]
[1753365828838,2.00922662,118390.0,118380.0,0.19424238]
[1753365830451,1.84038612,118390.0,118380.0,0.61679124]
[1753365830653,2.00922662,118390.0,118380.0,0.61679124]
[1753365830847,1.84038612,118390.0,118380.0,0.61679124]
[1753365831347,1.84038612,118390.0,118380.0,0.89358124]
[1753365831549,1.84038612,118390.0,118380.0,0.95429056]
[1753365831946,1.85292612,118390.0,118380.0,0.95429056]
[1753365832145,1.85292612,118390.0,118380.0,0.89358124]
[1753365832352,1.24764612,118390.0,118380.0,0.96067124]
[1753365832648,2.02176662,118390.0,118380.0,0.96067124]
[1753365832951,2.02176662,118390.0,118380.0,0.19424238]
[1753365833643,2.29403548,118390.0,118380.0,0.19424238]
[1753365833847,2.29403548,118390.0,118380.0,0.02538758]
[1753365834154,0.3939748,118380.0,118370.0,0.2533029]
[1753365834349,1.1247748,118380.0,118370.0,0.2110857]
[1753365834653,1.25120837,118380.0,118370.0,0.1688685]
[1753365835148,0.1688691,118370.0,118360.0,0.2533122]
[1753365835453,0.3940033,118360.0,118350.0,0.93181318]
[1753365835649,1.0648033,118360.0,118350.0,0.93181318]
[1753365836346,1.0598033,118360.0,118350.0,0.93181318]
[1753365836752,0.89592,118360.0,118350.0,0.93181318]
[1753365837053,1.0648033,118360.0,118350.0,0.87110386]
[1753365837349,0.89592,118360.0,118350.0,0.87110386]
[1753365837657,0.6355,118360.0,118350.0,1.01685386]
[1753365837954,0.6375,118360.0,118350.0,1.01685386]
[1753365838155,1.1701833,118360.0,118350.0,1.01685386]
[1753365838454,0.8093833,118360.0,118350.0,1.01685386]
[1753365838650,1.0013,118360.0,118350.0,1.01685386]
[1753365838955,0.6405,118360.0,118350.0,1.01685386]
[1753365839155,1.0013,118360.0,118350.0,1.01685386]
[1753365839357,0.6405,118360.0,118350.0,1.01685386]
[1753365839655,1.1701833,118360.0,118350.0,1.01685386]
[1753365839858,0.6405,118360.0,118350.0,1.01685386]
[1753365840053,0.98105,118360.0,118350.0,1.01685386]
[1753365840243,1.27075,118360.0,118350.0,1.01685386]
[1753365840448,1.25075,118360.0,118350.0,1.01685386]
[1753365840650,0.91075,118360.0,118350.0,1.01685386]
[1753365840956,0.005,118360.0,118350.0,1.80020272]
[1753365841547,0.005,118360.0,118350.0,2.94454672]
[1753365841858,1.3472,118390.0,118380.0,0.3127548]
[1753365842158,1.8460405,118390.0,118380.0,0.93364366]
[1753365842547,1.60631,118390.0,118380.0,0.93364366]
[1753365842748,0.1325,118390.0,118380.0,1.29444366]
[1753365842955,0.0125,118390.0,118380.0,1.63444366]
[1753365843156,0.0125,118390.0,118380.0,1.29444366]
[1753365843752,0.0125,118390.0,118380.0,1.89984366]
[1753365843951,0.0155,118390.0,118380.0,1.89984366]
[1753365844455,0.0175,118390.0,118380.0,2.44978766]
[1753365844758,0.0145,118390.0,118380.0,2.06978766]
[1753365845057,0.0155,118390.0,118380.0,2.06978766]
[1753365845458,0.0145,118390.0,118380.0,2.07278766]
[1753365845648,0.0145,118390.0,118380.0,1.90380366]
[1753365846855,0.7547705,118390.0,118380.0,1.90380366]
[1753365847067,0.33785,118390.0,118380.0,1.90380366]
[1753365847452,0.16635,118390.0,118380.0,1.75990366]
[1753365847653,0.0145,118390.0,118380.0,1.75990366]
[1753365848262,0.0145,118390.0,118380.0,1.82061298]
[1753365849354,0.0145,118390.0,118380.0,1.75990366]
[1753365850457,1e-07,118390.0,118380.0,2.19061298]
[1753365850660,0.51265,118420.0,118410.0,0.3660521]
[1753365850857,0.85265,118420.0,118410.0,1.39388096]
[1753365851662,0.7008,118420.0,118410.0,1.39388096]
[1753365852064,0.7088,118420.0,118410.0,1.39488096]
[1753365852762,0.7088,118420.0,118410.0,1.75568096]
[1753365852763,0.348,118420.0,118410.0,1.75568096]
[1753365852963,0.008,118420.0,118410.0,1.75568096]
[1753365853165,0.008,118420.0,118410.0,1.80108852]
[1753365854670,0.008,118420.0,118410.0,1.80965586]
[1753365855167,0.008,118420.0,118410.0,1.80108852]
[1753365855569,0.008,118420.0,118410.0,1.75568096]
[1753365856063,0.48985,118420.0,118410.0,1.15040096]
[1753365856264,0.8753378,118420.0,118410.0,1.19580852]
[1753365856469,1.2361378,118420.0,118410.0,0.45953966]
[1753365856666,1.2361378,118420.0,118410.0,1.06473966]
[1753365856860,1.06734,118420.0,118410.0,1.06473966]
[1753365857161,0.70654,118420.0,118410.0,1.48728852]
[1753365857357,0.62565,118420.0,118410.0,0.97890852]
[1753365857564,0.12261,118420.0,118410.0,1.33970852]
[1753365857762,0.018,118420.0,118410.0,1.33970852]
[1753365857962,0.008,118420.0,118410.0,1.33970852]
[1753365859670,0.008,118420.0,118410.0,1.63430096]
[1753365860267,0.008,118420.0,118410.0,1.23712148]
[1753365860463,0.15185,118440.0,118430.0,0.1687836]
[1753365860668,0.32,118440.0,118430.0,1.62201876]
[1753365860971,0.32,118440.0,118430.0,1.70640706]
[1753365861272,0.47185,118440.0,118430.0,1.70640706]
[1753365861470,0.8573093,118440.0,118430.0,0.6123882]
[1753365861671,0.8573093,118440.0,118430.0,0.6786982]
[1753365861870,0.8573093,118440.0,118430.0,1.10124706]
[1753365862072,0.68854,118440.0,118430.0,1.10124706]
[1753365862586,0.57246,118440.0,118430.0,1.10124706]
[1753365862764,0.32,118440.0,118430.0,1.46204706]
[1753365863071,0.57749,118470.0,118460.0,0.5098808]
[1753365863373,0.8566,118470.0,118460.0,0.93242966]
[1753365863570,0.96326,118470.0,118460.0,0.93242966]
[1753365864367,0.91902,118470.0,118460.0,0.93342966]
[1753365864668,0.008,118470.0,118460.0,1.53132966]
[1753365864968,0.15185,118490.0,118480.0,0.3659523]
[1753365865172,0.36,118490.0,118480.0,1.75482116]
[1753365865565,0.10461,118500.0,118490.0,0.1686981]
[1753365865762,0.47461,118500.0,118490.0,0.78848696]
[1753365866265,0.6905339,118500.0,118490.0,0.78848696]
[1753365866769,0.6905339,118500.0,118490.0,0.3659381]
[1753365866969,0.6935339,118500.0,118490.0,0.78948696]
[1753365867166,0.6935339,118500.0,118490.0,0.79048696]
[1753365867771,0.7648839,118500.0,118490.0,0.79048696]
[1753365868372,0.47761,118500.0,118490.0,0.79048696]
[1753365868573,0.373,118500.0,118490.0,0.79048696]
[1753365868875,0.5416839,118500.0,118490.0,0.79048696]
[1753365869176,0.6885039,118500.0,118490.0,0.79048696]
[1753365869375,1.0493039,118500.0,118490.0,0.79048696]
[1753365869676,1.1206539,118500.0,118490.0,0.79048696]
[1753365870069,0.98297,118500.0,118490.0,0.93872696]
[1753365870372,0.4038,118500.0,118490.0,0.93872696]
[1753365870565,0.55062,118500.0,118490.0,0.93872696]
[1753365871176,0.18982,118500.0,118490.0,0.93872696]
[1753365872077,1.1297639,118500.0,118490.0,1.54256696]
[1753365872277,1.1297639,118500.0,118490.0,1.54356696]
[1753365872476,0.96108,118500.0,118490.0,0.93872696]
[1753365872666,0.47917,118500.0,118490.0,1.54356696]
[1753365872878,0.48017,118500.0,118490.0,1.54556696]
[1753365873974,0.041,118500.0,118490.0,1.54556696]
[1753365874380,0.381,118500.0,118490.0,1.54556696]
[1753365874579,0.041,118500.0,118490.0,1.54556696]
[1753365875077,0.361,118500.0,118490.0,1.54556696]
[1753365875276,1.09208,118500.0,118490.0,1.54552696]
[1753365876176,1.2607639,118500.0,118490.0,0.94072696]
[1753365876380,1.99131232,118500.0,118490.0,0.1726981]
[1753365878984,1.82262842,118500.0,118490.0,0.1726981]
[1753365879184,1.82262842,118500.0,118490.0,0.59524696]
[1753365879380,1.82262842,118500.0,118490.0,0.66852696]
[1753365879585,1.09208,118500.0,118490.0,0.94253696]
[1753365880680,0.97097,118500.0,118490.0,0.94253696]
[1753365880880,0.73097,118500.0,118490.0,0.94253696]
[1753365881180,0.95097,118500.0,118490.0,0.94253696]
[1753365881386,0.74097,118500.0,118490.0,0.94253696]
[1753365881586,1.02232,118500.0,118490.0,0.94253696]
[1753365883092,1.02232,118500.0,118490.0,0.5199881]
[1753365883387,1.02232,118500.0,118490.0,0.94253696]
[1753365884091,1.04232,118500.0,118490.0,0.94253696]
[1753365884491,1.04232,118500.0,118490.0,0.5199881]
[1753365884788,1.64704,118500.0,118490.0,0.94253696]
[1753365884993,1.65954,118500.0,118490.0,0.94253696]
[1753365886385,1.65854,118500.0,118490.0,0.94253696]
[1753365886584,0.57616,118500.0,118490.0,0.94253696]
[1753365886785,0.1135,118500.0,118490.0,0.94253696]
[1753365886986,0.1135,118500.0,118490.0,0.94153696]
[1753365887192,0.1135,118500.0,118490.0,0.94353696]
[1753365887490,0.1135,118500.0,118490.0,1.54821696]
[1753365888588,0.1135,118500.0,118490.0,1.90901696]
[1753365889190,0.1135,118500.0,118490.0,1.54821696]
[1753365890988,0.1135,118500.0,118490.0,1.90901696]
[1753365891385,0.51032,118500.0,118490.0,1.90901696]
[1753365891690,1.12458,118500.0,118490.0,0.94353696]
[1753365891992,1.2932639,118500.0,118490.0,1.54817696]
[1753365892499,1.2932639,118500.0,118490.0,1.1256281]
[1753365892792,1.8978639,118500.0,118490.0,0.1736981]
[1753365894595,1.8978639,118500.0,118490.0,0.59624696]
[1753365894791,1.12458,118500.0,118490.0,0.94353696]
[1753365894994,1.72918,118500.0,118490.0,0.94353696]
[1753365896799,1.53918,118500.0,118490.0,0.94353696]
[1753365897000,1.7078639,118500.0,118490.0,0.98907973]
[1753365897201,1.7078639,118500.0,118490.0,0.69074973]
[1753365897802,1.7078639,118500.0,118490.0,0.88359973]
[1753365898007,1.7078639,118500.0,118490.0,0.91463973]
[1753365898397,1.7078639,118500.0,118490.0,0.49209087]
[1753365898706,2.44438575,118500.0,118490.0,0.05054277]
[1753365898904,0.5323423,118480.0,118470.0,0.2530875]
[1753365899107,1.46511563,118480.0,118470.0,0.2530875]
[1753365899301,1.93433595,118480.0,118470.0,0.2530875]
[1753365899500,1.9525376,118480.0,118470.0,0.2530875]
[1753365900114,1.9525376,118480.0,118470.0,0.2560875]
[1753365900306,1.9525376,118480.0,118470.0,0.3046975]
[1753365900908,1.9525376,118480.0,118470.0,0.3066975]
[1753365901398,1.9525376,118480.0,118470.0,0.3036975]
[1753365901598,1.9535376,118480.0,118470.0,0.3016975]
[1753365902005,1.9545376,118480.0,118470.0,0.3016975]
[1753365902400,1.3499776,118480.0,118470.0,0.3016975]
[1753365902710,1.9545776,118480.0,118470.0,0.94858636]
[1753365903006,1.7858253,118480.0,118470.0,1.01329636]
[1753365903406,1.9545376,118480.0,118470.0,1.01329636]
[1753365903711,1.7858253,118480.0,118470.0,1.01329636]
[1753365903910,1.1812653,118480.0,118470.0,1.01329636]
[1753365904107,1.2278353,118480.0,118470.0,1.01329636]
[1753365904315,0.003,118480.0,118470.0,1.37509636]
[1753365906910,0.001,118480.0,118470.0,1.37609636]
[1753365908000,0.001,118480.0,118470.0,1.69609636]
[1753365908215,0.17994,118500.0,118490.0,0.5063581]
[1753365908406,0.53994,118500.0,118490.0,1.53346696]
[1753365908604,0.44082,118500.0,118490.0,1.53346696]
[1753365908998,0.53994,118500.0,118490.0,1.53346696]
[1753365909208,0.8586439,118500.0,118490.0,1.53346696]
[1753365909708,0.9048139,118500.0,118490.0,1.53346696]
[1753365909911,0.73613,118500.0,118490.0,1.53346696]
[1753365910110,0.68996,118500.0,118490.0,1.53346696]
[1753365910711,0.62016,118500.0,118490.0,1.53346696]
[1753365910901,0.3725,118500.0,118490.0,1.53346696]
[1753365911104,1.2656139,118500.0,118490.0,1.0461681]
[1753365911305,1.2676139,118500.0,118490.0,1.46871696]
[1753365911710,0.62216,118500.0,118490.0,1.46871696]
[1753365912115,0.1545,118500.0,118490.0,0.92890696]
[1753365912313,0.1545,118500.0,118490.0,1.53342696]
[1753365913912,0.0145,118500.0,118490.0,2.48555982]
[1753365914113,0.09912,118520.0,118510.0,0.5050396]
[1753365914313,1.1343,118530.0,118520.0,0.5050254]
[1753365914513,1.08364159,118530.0,118520.0,0.5050254]
[1753365914713,1.21076413,118530.0,118520.0,0.92757426]
[1753365915019,1.14548254,118530.0,118520.0,0.92757426]
[1753365915419,0.51354,118530.0,118520.0,0.92857426]
[1753365915608,0.51354,118530.0,118520.0,0.5060254]
[1753365915812,0.51354,118530.0,118520.0,0.92857426]
[1753365916616,0.51354,118530.0,118520.0,0.99442055]
[1753365917416,0.3501,118530.0,118520.0,0.99542055]
[1753365917819,0.3441,118530.0,118520.0,0.99442055]
[1753365918015,0.3411,118530.0,118520.0,0.99342055]
[1753365918321,0.3431,118530.0,118520.0,0.99342055]
[1753365918822,0.44222,118530.0,118520.0,0.99342055]
[1753365919015,0.6791812,118530.0,118520.0,0.99342055]
[1753365919321,0.6791812,118530.0,118520.0,1.59782055]
[1753365919322,0.8292012,118530.0,118520.0,1.59782055]
[1753365919922,0.8753712,118530.0,118520.0,1.59782055]
[1753365920514,0.8753712,118530.0,118520.0,1.53197426]
[1753365920921,0.70673,118530.0,118520.0,1.53197426]
[1753365921113,0.66056,118530.0,118520.0,1.53197426]
[1753365921613,0.51054,118530.0,118520.0,1.89277426]
[1753365921814,0.3431,118530.0,118520.0,1.89277426]
[1753365922016,1.08109,118550.0,118540.0,0.07955]
[1753365922219,1.63875,118550.0,118540.0,0.92754576]
[1753365922420,1.76447555,118550.0,118540.0,0.92754576]
[1753365922923,1.93308825,118550.0,118540.0,0.92754576]
[1753365923419,1.8103627,118550.0,118540.0,0.92754576]
[1753365924320,1.8103227,118550.0,118540.0,0.92754576]
[1753365924518,1.04143,118550.0,118540.0,0.92854576]
[1753365924823,1.8143227,118550.0,118540.0,0.92854576]
[1753365925222,1.2100427,118550.0,118540.0,0.92854576]
[1753365926124,1.8143227,118550.0,118540.0,0.92854576]
[1753365927213,1.8143227,118550.0,118540.0,0.001]
[1753365927417,2.23687156,118550.0,118540.0,0.001]
[1753365927715,2.23687156,118550.0,118510.0,0.0455]
[1753365927716,0.5312654,118520.0,118510.0,0.0455]
[1753365927921,0.3606596,118510.0,118500.0,0.0455]
[1753365928119,1.1583896,118510.0,118500.0,0.0455]
[1753365928319,1.28460564,118510.0,118500.0,0.2141839]
[1753365929222,1.28460564,118510.0,118500.0,0.2161839]
[1753365929421,1.28460564,118510.0,118500.0,0.23140759]
[1753365930021,1.35829564,118510.0,118500.0,0.23140759]
[1753365930423,1.35829564,118510.0,118500.0,0.27690759]
[1753365930620,1.35829564,118510.0,118500.0,0.92078645]
[1753365930826,1.74551604,118510.0,118500.0,0.98867645]
[1753365931027,1.91418564,118510.0,118500.0,0.98867645]
[1753365931415,1.96249564,118510.0,118500.0,0.49823759]
[1753365931626,1.96249564,118510.0,118500.0,0.92078645]
[1753365931926,1.96249564,118510.0,118500.0,0.91878645]
[1753365932129,1.96349564,118510.0,118500.0,0.91878645]
[1753365932421,1.96349564,118510.0,118500.0,0.91978645]
[1753365932828,1.96349564,118510.0,118500.0,0.49723759]
[1753365933024,1.96349564,118510.0,118500.0,0.91878645]
[1753365934223,1.79482604,118510.0,118500.0,0.91878645]
[1753365934623,1.79482604,118510.0,118500.0,0.91858143]
[1753365934825,1.96349564,118510.0,118500.0,0.91858143]
[1753365935732,1.79482604,118510.0,118500.0,0.91858143]
[1753365936328,1.79482604,118510.0,118500.0,0.85806276]
[1753365936524,1.79482604,118510.0,118500.0,0.92595276]
[1753365936721,1.79482604,118510.0,118500.0,1.00185737]
[1753365936921,1.43402604,118510.0,118500.0,1.00185737]
[1753365937322,0.78151604,118510.0,118500.0,1.60609737]
[1753365937522,0.19438,118510.0,118500.0,2.02864623]
[1753365937736,0.131,118510.0,118500.0,2.01330845]
[1753365937926,0.131,118510.0,118500.0,1.59075959]
[1753365938521,0.131,118510.0,118500.0,2.37410845]
[1753365938720,0.1087995,118510.0,118500.0,2.31354162]
[1753365938933,0.5948,118540.0,118530.0,0.5033612]
[1753365939129,0.514,118540.0,118530.0,1.53015006]
[1753365939432,0.44031,118540.0,118530.0,1.53015006]
[1753365940831,0.514,118540.0,118530.0,1.53015006]
[1753365941031,0.6826269,118540.0,118530.0,1.53015006]
[1753365941630,0.514,118540.0,118530.0,1.53015006]
[1753365941830,0.516,118540.0,118530.0,1.53865344]
[1753365942534,0.6846269,118540.0,118530.0,1.53865344]
[1753365942737,0.516,118540.0,118530.0,1.53865344]
[1753365943038,0.6846269,118540.0,118530.0,1.53865344]
[1753365943233,0.516,118540.0,118530.0,1.53865344]
[1753365943640,0.44231,118540.0,118530.0,1.53865344]
[1753365945144,0.80311,118540.0,118530.0,1.53865344]
[1753365945533,1.045427,118540.0,118530.0,1.53865344]
[1753365945735,0.8768,118540.0,118530.0,1.53865344]
[1753365946142,1.0454269,118540.0,118530.0,0.93441344]
[1753365946341,1.06474773,118540.0,118530.0,1.53853344]
[1753365946645,1.11605792,118540.0,118530.0,0.8983812]
[1753365946837,1.11605792,118540.0,118530.0,0.9667612]
[1753365947037,1.11605792,118540.0,118530.0,1.46214006]
[1753365947938,1.72013792,118540.0,118530.0,0.4354712]
[1753365948234,1.72013792,118540.0,118530.0,0.3626412]
[1753365948844,1.55151102,118540.0,118530.0,0.78519006]
[1753365949045,1.72013792,118540.0,118530.0,0.4354712]
[1753365949234,1.55151102,118540.0,118530.0,0.85802006]
[1753365949938,1.72013802,118540.0,118530.0,0.85802006]
[1753365950548,1.55151102,118540.0,118530.0,0.85802006]
[1753365951542,1.14240102,118540.0,118530.0,0.92591006]
[1753365951746,0.46463102,118540.0,118530.0,0.92591006]
[1753365953554,0.285,118540.0,118530.0,0.5033612]
[1753365953849,0.285,118540.0,118530.0,1.28671006]
[1753365954244,0.02431619,118540.0,118530.0,1.28671006]
[1753365955851,0.005,118540.0,118530.0,1.28671006]
[1753365956045,0.005,118540.0,118530.0,1.66671006]
[1753365956249,0.02431836,118540.0,118530.0,1.28671006]
[1753365958151,0.005,118540.0,118530.0,1.28671006]
[1753365959453,0.62661,118540.0,118530.0,1.28671006]
[1753365959753,0.840657,118540.0,118530.0,1.89067006]
[1753365959946,0.85997811,118540.0,118530.0,1.52987006]
[1753365960149,0.840657,118540.0,118530.0,0.92591006]
[1753365960356,1.201457,118540.0,118530.0,0.92591006]
[1753365960541,1.22032602,118540.0,118530.0,0.9666012]
[1753365960741,1.201457,118540.0,118530.0,0.3626412]
[1753365961144,1.201457,118540.0,118530.0,0.2942612]
[1753365961344,1.201457,118540.0,118530.0,0.2141412]
[1753365961747,1.2014569,118540.0,118530.0,0.78233006]
[1753365962053,1.2014569,118540.0,118530.0,0.4309212]
[1753365962253,1.2014569,118540.0,118530.0,0.85347006]
[1753365962453,1.03283,118540.0,118530.0,0.85347006]
[1753365962653,1.201457,118540.0,118530.0,0.85347006]
[1753365963148,0.840657,118540.0,118530.0,0.85347006]
[1753365963353,1.03283,118540.0,118530.0,0.91474006]
[1753365964352,1.201457,118540.0,118530.0,0.91474006]
[1753365964656,1.03283,118540.0,118530.0,0.91474006]
[1753365965357,0.98741,118540.0,118530.0,0.91474006]
[1753365965552,0.48281,118540.0,118530.0,0.91474006]
[1753365965747,0.325,118540.0,118530.0,0.97531814]
[1753365966151,0.005,118540.0,118530.0,1.27554006]
[1753365966356,0.005,118540.0,118530.0,1.27543514]
[1753365966750,0.005,118540.0,118530.0,0.85288628]
[1753365966955,0.005,118540.0,118530.0,1.27543514]
[1753365967350,1e-07,118540.0,118530.0,1.33601322]
[1753365967550,1e-07,118540.0,118530.0,1.66601322]
[1753365967752,0.09567,118550.0,118540.0,0.3074869]
[1753365967953,0.33,118550.0,118540.0,2.02956406]
[1753365968152,0.12989,118560.0,118550.0,0.3074727]
[1753365968350,0.47989,118560.0,118550.0,0.94280156]
[1753365968949,0.47989,118560.0,118550.0,0.5202527]
[1753365969149,0.35,118560.0,118550.0,0.94280156]
[1753365969355,0.35,118560.0,118550.0,1.36535042]
[1753365969652,0.35,118560.0,118550.0,0.94280156]
[1753365969852,0.35,118560.0,118550.0,1.36535042]
[1753365970057,0.353,118560.0,118550.0,1.36535042]
[1753365970259,0.353,118560.0,118550.0,1.43249612]
[1753365970854,0.353,118560.0,118550.0,1.00994726]
[1753365971161,0.65461,118560.0,118550.0,0.5873984]
[1753365971360,0.65461,118560.0,118550.0,1.00994726]
[1753365971563,0.65661,118560.0,118550.0,1.00994726]
[1753365972062,0.51281,118560.0,118550.0,1.00994726]
[1753365973457,0.65661,118560.0,118550.0,0.5873984]
[1753365973763,1.2314285,118560.0,118550.0,1.54728156]
[1753365975358,1.2314285,118560.0,118550.0,0.78343156]
[1753365975557,1.2314285,118560.0,118550.0,0.1686127]
[1753365975759,0.1686127,118550.0,118540.0,0.35828508]
[1753365976058,1.8010827,118550.0,118540.0,0.35403068]
[1753365976252,1.8010827,118550.0,118540.0,0.27644068]
[1753365976854,1.8010827,118550.0,118540.0,0.22981068]
[1753365977059,1.8020827,118550.0,118540.0,0.22981068]
[1753365977462,1.92888414,118550.0,118540.0,0.22981068]
[1753365979971,1.92988414,118550.0,118540.0,0.27644068]
[1753365980767,1.92988414,118550.0,118540.0,0.22981068]
[1753365985770,0.5156569,118540.0,118530.0,0.31352928]
[1753365986072,2.3510325,118540.0,118530.0,0.27136968]
[1753365986468,1.92848364,118540.0,118530.0,0.27136968]
[1753365986672,1.92848364,118540.0,118530.0,0.2107916]
[1753365986867,2.3510325,118540.0,118530.0,0.2107916]
[1753365987068,0.1686412,118530.0,118520.0,0.31354758]
[1753365987378,1.34017961,118530.0,118520.0,0.31354758]
[1753365987574,1.34017961,118530.0,118520.0,0.2529695]
[1753365987776,1.34017961,118530.0,118520.0,0.2992095]
[1753365988270,1.34017961,118530.0,118520.0,0.3012095]
[1753365989177,1.34017961,118530.0,118520.0,0.2549695]
[1753365989365,2.4356941,118530.0,118520.0,0.2128061]
[1753365989570,2.01314524,118530.0,118520.0,0.23222078]
[1753365989771,2.4356941,118530.0,118520.0,0.06357808]
[1753365990371,0.5236554,118520.0,118510.0,0.32872]
[1753365990577,1.63700426,118520.0,118510.0,0.32872]
[1753365990775,1.76431139,118520.0,118510.0,0.2529974]
[1753365991078,1.34176253,118520.0,118510.0,0.32872]
[1753365991278,1.34176253,118520.0,118510.0,0.2529974]
[1753365992171,1.76431139,118520.0,118510.0,0.1686638]
[1753365992773,1.34176253,118520.0,118510.0,0.1686638]
[1753365993171,1.94660253,118520.0,118510.0,0.2149038]
[1753365993782,1.94660253,118520.0,118510.0,0.1686638]
[1753365995278,1.94760253,118520.0,118510.0,0.1686638]
[1753366000075,1.94760253,118520.0,118500.0,0.80205206]
[1753366000076,0.3143896,118510.0,118500.0,1.00937126]
[1753366000377,1.39040956,118510.0,118500.0,0.16867]
[1753366000574,0.5236839,118500.0,118490.0,0.09414894]
[1753366000774,2.23119276,118500.0,118490.0,0.01842634]
[1753366000970,2.23119276,118500.0,118480.0,0.2444293]
[1753366000971,0.5236981,118490.0,118480.0,0.2444349]
[1753366001176,1.65704696,118490.0,118480.0,0.2444349]
[1753366001375,1.78298692,118490.0,118480.0,0.2444349]
[1753366002477,1.36043806,118490.0,118480.0,0.2444349]
[1753366003085,1.36043806,118490.0,118480.0,0.1687123]
[1753366003285,1.36043806,118490.0,118480.0,0.2444349]
[1753366003486,1.36043806,118490.0,118480.0,0.1687123]
[1753366003988,1.36043806,118490.0,118480.0,0.1717123]
[1753366004884,1.96467806,118490.0,118480.0,0.1717123]
[1753366005281,1.96467806,118490.0,118480.0,0.1737123]
[1753366005487,1.96463806,118490.0,118480.0,0.1737123]
[1753366006883,1.79593996,118490.0,118480.0,0.1737123]
[1753366007088,1.96463806,118490.0,118480.0,0.2494349]
[1753366009793,1.96463806,118490.0,118480.0,0.24946658]
[1753366010382,1.96463806,118490.0,118480.0,0.1737123]
[1753366010582,1.96463806,118490.0,118480.0,0.27997876]
[1753366011694,0.1687266,118470.0,118460.0,0.36262923]
[1753366011993,2.76827968,118470.0,118460.0,0.35272393]
[1753366012298,2.76827968,118470.0,118460.0,0.2109147]
[1753366012500,2.41381017,118470.0,118460.0,0.2887547]
[1753366012695,2.41381017,118470.0,118460.0,0.5025547]
[1753366012901,2.41381017,118470.0,118460.0,0.2109147]
[1753366013301,2.41481017,118470.0,118460.0,0.2169147]
[1753366013596,2.05401017,118470.0,118460.0,0.2169147]
[1753366014290,2.05401017,118470.0,118460.0,0.2631547]
[1753366014601,2.05401017,118470.0,118460.0,0.33892567]
[1753366015402,2.05501017,118470.0,118460.0,0.34292567]
[1753366016005,2.05501017,118470.0,118460.0,0.29668567]
[1753366016605,2.47755903,118470.0,118460.0,0.29668567]
[1753366016805,0.14657,118440.0,118430.0,0.572238]
[1753366017106,1.8489693,118440.0,118430.0,0.572238]
[1753366017699,1.8489693,118440.0,118430.0,0.87978686]
[1753366017899,1.8489693,118440.0,118430.0,0.288558]
[1753366018099,1.8499693,118440.0,118430.0,0.576238]
[1753366018499,1.8499693,118440.0,118430.0,0.99878686]
[1753366019008,1.8509693,118440.0,118430.0,1.00178686]
[1753366019807,1.8509693,118440.0,118430.0,1.10780622]
[1753366020008,1.8609693,118440.0,118430.0,0.68525736]
[1753366020304,1.8609693,118440.0,118430.0,1.00178686]
[1753366020800,0.72752,118440.0,118430.0,1.00178686]
[1753366021005,1.24257,118440.0,118430.0,1.00178686]
[1753366021605,1.29108,118440.0,118430.0,0.93610686]
[1753366021805,1.65188,118440.0,118430.0,1.00178686]
[1753366022002,1.8206493,118440.0,118430.0,1.00178686]
[1753366022805,1.46488,118440.0,118430.0,1.00178686]
[1753366023011,1.49488,118440.0,118430.0,1.00178686]
[1753366023203,1.22406,118440.0,118430.0,1.00178686]
[1753366023406,1.54406,118440.0,118430.0,1.00178686]
[1753366023604,1.22406,118440.0,118430.0,1.00178686]
[1753366023805,1.58406,118440.0,118430.0,1.00178686]
[1753366024006,0.35672,118440.0,118430.0,1.36258686]
[1753366024200,0.93579301,118470.0,118460.0,0.08015]
[1753366024201,0.71901935,118470.0,118460.0,0.08015]
[1753366024407,1.06552,118470.0,118460.0,0.95244966]
[1753366024611,1.36163213,118470.0,118460.0,0.95244966]
[1753366024806,1.36163213,118470.0,118460.0,0.5299008]
[1753366025109,1.36163213,118470.0,118450.0,0.3419529]
[1753366025110,0.5234608,118460.0,118450.0,0.3419529]
[1753366025306,2.25124966,118460.0,118450.0,0.2953029]
[1753366025609,1.95560379,118460.0,118450.0,0.2953029]
[1753366025809,1.95572379,118460.0,118450.0,0.3419529]
[1753366026405,1.95572379,118460.0,118450.0,0.2953029]
[1753366027104,2.31505488,118460.0,118450.0,0.1687428]
[1753366027311,2.31505488,118460.0,118450.0,0.1697428]
[1753366027501,1.95572379,118460.0,118450.0,0.1697428]
[1753366028512,1.95572379,118460.0,118450.0,0.1707428]
[1753366028914,1.95572379,118460.0,118450.0,0.53007389]
[1753366029109,1.18242299,118460.0,118450.0,0.57672389]
[1753366029310,1.78730299,118460.0,118450.0,0.89123389]
[1753366029514,1.73879299,118460.0,118450.0,0.89123389]
[1753366029711,1.95604379,118460.0,118450.0,0.89123389]
[1753366029911,1.78730299,118460.0,118450.0,0.89123389]
[1753366030214,1.95604379,118460.0,118450.0,0.89123389]
[1753366030509,1.95604379,118460.0,118450.0,0.2174051]
[1753366030711,1.95604379,118460.0,118450.0,0.04865]
[1753366031014,2.31537488,118460.0,118450.0,0.002]
[1753366031717,0.5234893,118440.0,118430.0,0.2999113]
[1753366031920,2.1694893,118440.0,118430.0,0.2999113]
[1753366032718,2.1694893,118440.0,118430.0,0.90807239]
[1753366033212,0.4878636,118430.0,118420.0,0.04665]
[1753366033406,0.5235178,118420.0,118410.0,0.3420633]
[1753366033610,1.8291978,118420.0,118410.0,0.2998608]
[1753366033915,1.9533516,118420.0,118410.0,0.2998608]
[1753366034319,1.9493516,118420.0,118410.0,0.72117957]
[1753366034611,1.9493516,118420.0,118410.0,0.97000957]
[1753366034816,1.9493516,118420.0,118410.0,1.03568957]
[1753366035005,1.9503516,118420.0,118410.0,1.04068957]
[1753366035206,1.7885538,118420.0,118410.0,1.04068957]
[1753366035407,1.7400438,118420.0,118410.0,1.04068957]
[1753366035811,1.1351638,118420.0,118410.0,0.6193708]
[1753366036016,1.9088416,118420.0,118410.0,1.04068957]
[1753366036217,1.9573516,118420.0,118410.0,1.04068957]
[1753366036416,1.9573516,118420.0,118410.0,1.03568957]
[1753366036614,1.9593516,118420.0,118410.0,1.03668957]